bitfinex-derivatives/quotes_ETHF0:USTF0_20250928
["timestamp","ask_amount","ask_price","bid_price","bid_amount"]
[1759084817411,0.5374,4040.4,4040.3,0.7431]
[1759084817622,0.7444,4040.4,4040.3,0.7431]
[1759084824214,1.21567,4040.1,4040.0,0.00200774]
[1759084824413,0.8996,4039.5,4039.4,3.97055]
[1759084824719,0.4674,4039.5,4039.1,0.3173]
[1759084824921,0.7703,4039.2,4039.1,0.7342]
[1759084825419,0.7703,4039.2,4039.1,0.7361696]
[1759084826726,0.4322,4039.2,4039.1,0.7361696]
[1759084828425,0.7703,4039.2,4039.1,0.7361696]
[1759084832022,0.3381,4039.6,4039.5,0.44544]
[1759084832224,0.7703,4039.6,4039.5,1.31504]
[1759084833924,0.69441,4039.7,4039.5,1.31504]
[1759084833925,3.2078,4039.8,4039.7,0.44541]
[1759084834225,3.4192,4039.8,4039.7,1.17961]
[1759084834426,3.7573,4039.8,4039.7,1.17961]
[1759084835224,4.46954916,4039.8,4039.7,1.17961]
[1759084836531,4.46954916,4039.8,4039.7,0.7342]
[1759084839934,4.91494916,4039.8,4039.7,1.17961]
[1759084840133,0.5495,4040.2,4040.1,0.86227]
[1759084840326,0.5495,4040.2,4040.1,0.7342]
[1759084840327,1.26310292,4040.2,4040.1,0.7342]
[1759084840830,0.87757,4040.1,4040.0,0.44538]
[1759084841032,1.70847292,4040.1,4040.0,0.76268]
[1759084841334,1.70847292,4040.1,4040.0,0.97408]
[1759084842031,0.49280292,4040.1,4040.0,1.31498]
[1759084842327,1.2438,4040.7,4040.6,1.17951]
[1759084842632,1.95743929,4040.7,4040.6,1.17951]
[1759084842934,1.51213929,4040.7,4040.6,1.17951]
[1759084843627,1.51213929,4040.7,4040.6,0.7342]
[1759084844533,1.51213929,4040.7,4040.6,0.5287]
[1759084845721,1.51213929,4040.7,4040.6,0.3173]
[1759084845923,1.21563,4040.5,4040.4,0.5287]
[1759084846125,1.70846929,4040.5,4040.4,0.5287]
[1759084849133,1.26313929,4040.5,4040.4,0.5287]
[1759084850039,1.26313929,4040.5,4040.4,0.7342]
[1759084853831,0.49283929,4040.5,4040.4,3.942]
[1759084854031,0.44531,4040.7,4040.6,0.7872]
[1759084854232,0.93811155,4040.7,4040.6,0.7872]
[1759084854930,1.14601155,4040.7,4040.6,0.7872]
[1759084855129,1.14601155,4040.7,4040.6,1.23251]
[1759084856043,0.49280155,4040.7,4040.6,1.23251]
[1759084856339,0.2079,4041.1,4041.0,1.36526]
[1759084856539,0.70056356,4041.1,4041.0,1.36526]
[1759084858435,1.03076356,4041.1,4041.0,1.36526]
[1759084859337,1.25056356,4041.1,4041.0,1.36526]
[1759084864838,0.92036356,4041.1,4041.0,1.36526]
[1759084865044,0.49266356,4041.1,4041.0,1.36526]
[1759084865343,0.7871,4041.7,4041.6,0.89369]
[1759084865649,1.72493226,4041.7,4041.6,0.7872]
[1759084866347,1.72493226,4041.7,4041.6,1.2324]
[1759084866749,1.94473226,4041.7,4041.6,1.2324]
[1759084869943,1.94473226,4041.7,4041.6,0.7872]
[1759084870148,1.94473226,4041.7,4041.6,0.5645]
[1759084870752,1.94473226,4041.7,4041.6,0.3387]
[1759084871346,0.2079,4041.5,4041.4,0.44522]
[1759084871543,1.25005226,4041.5,4041.4,0.99232]
[1759084871744,1.69526226,4041.5,4041.4,0.99232]
[1759084873653,1.25005226,4041.5,4041.4,0.99232]
[1759084874949,1.25005226,4041.5,4041.4,1.20362]
[1759084876252,1.69526226,4041.5,4041.4,1.20362]
[1759084876854,1.69526226,4041.5,4041.4,0.7584]
[1759084878056,1.69526226,4041.5,4041.4,1.20362]
[1759084885059,1.25005226,4041.5,4041.4,1.20362]
[1759084885251,1.69526226,4041.5,4041.4,1.20362]
[1759084891067,1.25005226,4041.5,4041.4,1.20362]
[1759084891265,1.69526226,4041.5,4041.4,1.20362]
[1759084894466,1.25005226,4041.5,4041.4,1.20362]
[1759084894767,1.69526226,4041.5,4041.4,1.20362]
[1759084897571,1.25005226,4041.5,4041.4,1.20362]
[1759084898368,1.69526226,4041.5,4041.4,1.20362]
[1759084901273,1.25005226,4041.5,4041.4,1.20362]
[1759084902668,1.69526226,4041.5,4041.4,1.20362]
[1759084905571,0.49265226,4041.5,4041.4,1.20362]
[1759084905777,0.99373109,4041.8,4041.7,1.17269]
[1759084905978,1.04237152,4041.8,4041.7,1.17269]
[1759084906576,1.48755152,4041.8,4041.7,1.17269]
[1759084906970,1.69555152,4041.8,4041.7,0.5153]
[1759084910679,1.69555152,4041.8,4041.7,0.96049]
[1759084911679,1.69555152,4041.8,4041.7,0.5153]
[1759084912478,1.69555152,4041.8,4041.7,0.96049]
[1759084913582,1.69555152,4041.8,4041.7,0.5153]
[1759084914184,1.69555152,4041.8,4041.7,0.96049]
[1759084916681,1.25037152,4041.8,4041.7,1.17799]
[1759084917874,1.04237152,4041.8,4041.7,1.17799]
[1759084918180,0.70447152,4041.8,4041.7,1.17799]
[1759084918572,0.49627152,4041.8,4041.7,1.17799]
[1759084925788,7.46408886,4041.8,4041.6,3.2078]
[1759084925984,0.7747,4041.3,4041.2,0.76055]
[1759084926184,1.26852043,4041.3,4041.2,0.76055]
[1759084926390,1.26852043,4041.3,4041.2,0.97485]
[1759084934399,1.26852043,4041.3,4041.2,1.19235]
[1759084935501,1.26852043,4041.3,4041.2,1.44035]
[1759084939502,0.93582043,4041.3,4041.2,1.44035]
[1759084940295,0.71392043,4041.3,4041.2,1.44035]
[1759084940501,0.49382043,4041.3,4041.2,2.78732358]
[1759084949506,0.71152043,4041.3,4041.2,1.44035]
[1759084958415,0.71116077,4041.3,4041.2,1.44035]
[1759084961816,0.49346077,4041.3,4041.2,1.44035]
[1759084978835,0.71756077,4041.3,4041.2,1.44035]
[1759084979024,1.26066077,4041.3,4041.2,0.248]
[1759084979636,6.26066077,4041.3,4041.2,0.248]
[1759084980433,1.21245,4041.2,4041.1,3.2078]
[1759084980633,1.70591077,4041.2,4041.1,3.2078]
[1759084980833,1.26066077,4041.2,4041.1,3.2078]
[1759084981236,1.26066077,4041.2,4041.1,3.5309]
[1759084981434,1.26066077,4041.2,4041.1,3.9664]
[1759084983232,1.26066077,4041.2,4041.1,3.7511]
[1759084983439,1.26066077,4041.2,4041.1,3.9991]
[1759084985035,1.26066077,4041.2,4041.1,4.2144]
[1759084988739,1.70591077,4041.2,4041.1,4.2144]
[1759084989037,1.70591077,4041.2,4041.1,4.65966]
[1759084995444,1.70591077,4041.2,4041.1,4.2144]
[1759084995640,1.70591077,4041.2,4040.5,0.1328]
[1759084995641,0.8629,4040.7,4040.6,3.87611]
[1759084995830,1.21860016,4040.7,4040.6,4.45941]
[1759084996239,1.66390016,4040.7,4040.6,4.67741]
[1759084997042,1.66390016,4040.7,4040.6,4.2321]
[1759084997442,1.66390016,4040.7,4040.6,4.0141]
[1759084997645,1.21860016,4040.7,4040.6,4.0141]
[1759084997841,1.21860016,4040.7,4040.6,4.2321]
[1759085000443,0.90900016,4040.7,4040.6,4.2321]
[1759085000641,1.21860016,4040.7,4040.6,4.2321]
[1759085001144,0.90900016,4040.7,4040.6,4.2321]
[1759085004546,0.49140016,4040.7,4040.6,4.2321]
[1759085004741,0.44524,4041.3,4041.2,0.4181]
[1759085004942,0.248,4041.5,4041.2,0.7415]
[1759085004943,0.4911783,4041.4,4041.2,0.7415]
[1759085005142,0.4911783,4041.3,4041.2,0.7415]
[1759085006039,0.4911783,4041.3,4041.2,0.9895]
[1759085006444,3.2078,4041.7,4041.6,0.7415]
[1759085006654,3.6989973,4041.7,4041.6,1.4347]
[1759085008048,0.4911973,4041.7,4041.6,1.4347]
[1759085008444,0.7105973,4041.7,4041.6,1.4347]
[1759085008645,1.0440973,4041.7,4041.6,1.4347]
[1759085008951,1.2607973,4041.7,4041.6,0.5714]
[1759085009354,1.2607973,4041.7,4041.6,0.7804]
[1759085012546,1.2607973,4041.7,4041.6,0.9895]
[1759085012760,1.26050109,4041.7,4041.6,0.9895]
[1759085016256,1.26050109,4041.7,4041.6,1.4347]
[1759085019257,0.92700109,4041.7,4041.6,1.4347]
[1759085019460,0.49090109,4041.7,4041.6,1.4347]
[1759085030763,0.71030109,4041.7,4041.6,1.4347]
[1759085030969,1.04380109,4041.7,4041.6,1.4347]
[1759085032465,1.26050109,4041.7,4041.6,1.1867]
[1759085032661,1.26050109,4041.7,4041.6,0.4452]
[1759085033474,0.4361,4041.5,4041.4,0.76863]
[1759085033767,1.23610109,4041.5,4041.4,0.76863]
[1759085034067,1.23610109,4041.5,4041.4,0.99333]
[1759085035358,1.23610109,4041.5,4041.4,1.20173]
[1759085037165,0.92700109,4041.5,4041.4,1.20173]
[1759085037364,1.23610109,4041.5,4041.4,1.20173]
[1759085037566,0.71030109,4041.5,4041.4,1.20173]
[1759085038669,1.01940109,4041.5,4041.4,1.20173]
[1759085041373,1.24370109,4041.5,4041.4,1.20173]
[1759085042172,1.24370109,4041.5,4041.3,0.248]
[1759085042173,1.06830109,4041.5,4041.3,1.02934]
[1759085042367,1.24030109,4041.4,4041.3,1.02934]
[1759085042567,1.24030109,4041.4,4041.3,1.25404]
[1759085043169,1.24030109,4041.4,4041.3,1.46244]
[1759085072396,0.49090109,4041.4,4041.3,1.46244]
[1759085072598,0.21595109,4041.8,4041.7,0.7506]
[1759085072805,0.53095109,4041.8,4041.7,0.7506]
[1759085073001,1.2371967,4041.8,4041.7,0.7506]
[1759085075597,1.2371967,4041.8,4041.7,0.5384]
[1759085080403,1.2371967,4041.8,4041.7,0.98359]
[1759085083803,1.2371967,4041.8,4041.7,1.19579]
[1759085085005,1.6823767,4041.8,4041.7,1.19579]
[1759085096007,0.7456,4041.4,4041.3,0.2192]
[1759085096210,1.68257561,4041.4,4041.3,0.99424]
[1759085098210,1.23734561,4041.4,4041.3,1.22114]
[1759085099014,0.91214561,4041.4,4041.3,1.22114]
[1759085101312,1.23734561,4041.4,4041.3,1.22114]
[1759085103221,0.91214561,4041.4,4041.3,1.22114]
[1759085105515,0.49174561,4041.4,4041.3,1.22114]
[1759085105723,0.99605109,4041.8,4041.7,0.7759]
[1759085105923,1.48774555,4041.8,4041.7,1.22109]
[1759085106923,0.95534555,4041.8,4041.7,1.22109]
[1759085107324,1.40052555,4041.8,4041.7,1.22109]
[1759085107526,1.72572555,4041.8,4041.7,1.22109]
[1759085107917,1.68492555,4041.8,4041.7,1.22109]
[1759085108726,1.68492555,4041.8,4041.7,0.7759]
[1759085109124,1.68492555,4041.8,4041.7,1.22109]
[1759085113627,1.23974555,4041.8,4041.7,1.22109]
[1759085117033,1.68492555,4041.8,4041.7,1.22109]
[1759085117334,1.23974555,4041.8,4041.7,1.22109]
[1759085117633,1.48774555,4041.8,4041.7,1.22109]
[1759085120337,1.93292555,4041.8,4041.7,1.22109]
[1759085120725,1.68492555,4041.8,4041.7,1.22109]
[1759085120931,1.93292555,4041.8,4041.7,1.22109]
[1759085125939,1.93340932,4041.8,4041.7,1.22109]
[1759085126842,1.68540932,4041.8,4041.7,1.22109]
[1759085127041,0.49462932,4041.8,4041.7,1.22109]
[1759085140849,1.04382932,4041.8,4041.7,1.22109]
[1759085141151,1.26719696,4041.8,4041.7,1.22109]
[1759085141957,1.26719696,4041.8,4041.7,0.99419]
[1759085142251,1.26719696,4041.8,4041.7,1.19999]
[1759085146057,1.71237696,4041.8,4041.7,0.7548]
[1759085146555,1.71237696,4041.8,4041.7,1.19999]
[1759085146850,1.71237696,4041.8,4041.4,0.3321]
[1759085146851,1.35232,4041.5,4041.4,0.3321]
[1759085147056,1.84396587,4041.5,4041.4,0.3321]
[1759085149056,1.84396587,4041.5,4041.4,0.77733]
[1759085150158,1.39874587,4041.5,4041.4,0.99233]
[1759085150654,1.26474587,4041.5,4041.4,0.99233]
[1759085153466,1.70996587,4041.5,4041.4,0.99233]
[1759085156366,1.70996587,4041.5,4041.4,0.5471]
[1759085156568,1.70996587,4041.5,4041.4,0.99233]
[1759085159669,1.70996587,4041.5,4041.4,0.5471]
[1759085160058,1.26474587,4041.5,4041.4,0.99233]
[1759085165972,1.26474587,4041.5,4041.4,1.20373]
[1759085170578,1.26474587,4041.5,4041.4,1.45173]
[1759085190599,0.49164587,4041.5,4041.4,1.45173]
[1759085191598,0.70364587,4041.5,4041.4,1.45173]
[1759085194799,0.49164587,4041.5,4041.4,1.45173]
[1759085195003,0.00245109,4041.8,4041.7,1.19909]
[1759085195192,0.73575109,4041.8,4041.7,1.19909]
[1759085197004,0.21445109,4041.8,4041.7,1.19909]
[1759085197905,0.52375109,4041.8,4041.7,1.19909]
[1759085199405,0.73575109,4041.8,4041.7,1.19909]
[1759085207009,1.22500703,4041.8,4041.7,1.19909]
[1759085221916,0.49170703,4041.8,4041.7,1.19909]
[1759085224316,0.49170703,4041.8,4041.7,1.39459827]
[1759085225819,0.00245109,4041.8,4041.7,2.72731927]
[1759085226211,0.3113,4042.9,4042.8,0.44507]
[1759085226413,0.5178,4042.9,4042.8,1.18287]
[1759085226622,1.00661393,4042.9,4042.8,1.18287]
[1759085227024,0.47958219,4042.9,4042.8,1.18287]
[1759085227326,0.3113,4043.6,4042.8,1.18287]
[1759085227327,0.7247,4043.6,4043.5,1.18279]
[1759085227717,0.72702556,4043.6,4043.5,1.30719]
[1759085228220,0.00232556,4043.6,4043.5,1.30719]
[1759085228815,0.20882556,4043.6,4043.5,1.30719]
[1759085229019,0.52012556,4043.6,4043.5,1.30719]
[1759085230717,0.52012556,4043.6,4043.5,1.55519]
[1759085230916,0.52012556,4043.6,4043.5,1.1102]
[1759085231520,0.00232556,4043.6,4043.5,1.1102]
[1759085232420,0.00232556,4043.6,4043.5,2.18962722]
[1759085236627,0.21362556,4043.6,4043.5,1.1102]
[1759085236932,0.73102556,4043.6,4043.5,0.9858]
[1759085237429,0.00232556,4043.6,4043.5,1.1094]
[1759085242535,0.21362556,4043.6,4043.5,1.1094]
[1759085242926,0.52572556,4043.6,4043.5,1.1094]
[1759085244134,0.52572556,4043.6,4043.5,1.55439]
[1759085246549,0.74192556,4043.6,4043.5,1.55439]
[1759085246750,1.18690556,4043.6,4043.5,0.248]
[1759085247045,1.18690556,4043.6,4043.3,3.2078]
[1759085247046,0.8771,4043.5,4043.4,1.01311]
[1759085247246,0.8771,4043.5,4043.4,1.22601]
[1759085247547,0.7509,4043.5,4043.4,1.43191]
[1759085247739,0.8771,4043.5,4043.4,0.781]
[1759085248139,0.7509,4043.5,4043.4,0.9869]
[1759085249653,0.00232556,4043.6,4043.5,1.31139]
[1759085254848,0.21262556,4043.6,4043.5,1.31139]
[1759085259143,1.83265278,4043.6,4043.5,0.8664]
[1759085259350,1.95323278,4043.6,4043.4,0.5681]
[1759085259552,0.7509,4043.5,4043.4,0.533]
[1759085260449,0.7509,4043.5,4043.4,0.7389]
[1759085263862,0.7509,4043.5,4043.4,0.533]
[1759085264357,0.7509,4043.5,4043.4,0.7389]
[1759085265061,0.7509,4043.5,4043.4,1.1839]
[1759085270464,0.98200556,4043.6,4043.5,1.31139]
[1759085270666,1.19820556,4043.6,4043.5,1.31139]
[1759085271768,1.19820556,4043.6,4043.5,0.8664]
[1759085272165,1.19820556,4043.6,4043.5,1.31139]
[1759085273068,1.19820556,4043.6,4043.5,0.8664]
[1759085273256,1.19820556,4043.6,4043.5,0.7389]
[1759085273462,1.19820556,4043.6,4043.5,0.533]
[1759085273662,0.7362,4043.3,4043.1,0.44503]
[1759085273864,0.7362,4043.2,4043.1,0.44503]
[1759085274166,0.7362,4043.2,4043.1,0.3127]
[1759085274167,1.18123,4043.2,4043.1,0.3127]
[1759085275468,1.18123,4043.2,4043.1,0.97724]
[1759085277070,0.7362,4043.2,4043.1,0.97724]
[1759085277462,0.7362,4043.2,4043.1,1.18984]
[1759085279371,1.18123,4043.2,4043.1,1.18984]
[1759085281374,1.43123,4043.2,4043.1,0.7448]
[1759085281874,1.43123,4043.2,4043.1,1.18984]
[1759085282369,1.43123,4043.2,4043.1,0.7448]
[1759085282564,1.43123,4043.2,4043.1,1.18984]
[1759085284079,0.9862,4043.2,4043.1,1.18984]
[1759085284964,1.43123,4043.2,4043.1,1.18984]
[1759085287381,1.43123,4043.2,4043.1,0.5322]
[1759085288179,1.43123,4043.2,4043.1,1.18984]
[1759085288777,0.9862,4043.2,4043.1,1.18984]
[1759085288980,1.43123,4043.2,4043.1,1.18984]
[1759085289372,1.2342,4043.2,4043.1,1.18984]
[1759085289566,1.67923,4043.2,4043.1,1.18984]
[1759085289778,1.67923,4043.2,4043.1,0.7448]
[1759085290566,0.4185,4042.9,4042.8,0.6666084]
[1759085290771,1.18126,4042.9,4042.8,0.6666084]
[1759085291174,0.7362,4042.9,4042.8,1.1919084]
[1759085291774,4.91333,4043.2,4043.1,1.20544]
[1759085293175,4.66533,4043.2,4043.1,1.20544]
[1759085293383,4.91333,4043.2,4043.1,1.20544]
[1759085294382,4.66533,4043.2,4043.1,1.20544]
[1759085294581,4.91333,4043.2,4043.1,1.20544]
[1759085298786,4.66533,4043.2,4043.1,1.20544]
[1759085298989,4.91333,4043.2,4043.1,1.20544]
[1759085299188,4.91333,4043.2,4043.1,0.7604]
[1759085300088,4.91333,4043.2,4043.1,1.20544]
[1759085300588,4.4683,4043.2,4043.1,1.20544]
[1759085300886,4.91333,4043.2,4043.1,1.20544]
[1759085301587,3.6792,4043.2,4043.1,1.20544]
[1759085301781,0.25,4043.2,4043.1,1.20544]
[1759085303290,4.2203,4043.2,4043.1,0.76724]
[1759085303490,0.5674,4043.0,4042.9,0.44506]
[1759085303686,0.8872,4043.0,4042.9,0.44506]
[1759085303985,1.1352,4043.0,4042.9,0.44506]
[1759085304487,1.1352,4043.0,4042.9,0.76896]
[1759085304685,0.9991,4043.0,4042.9,1.18906]
[1759085307989,0.9991,4043.0,4042.9,0.44506]
[1759085308393,1.1247,4043.0,4042.9,0.44506]
[1759085308698,1.56975,4043.0,4042.9,0.44506]
[1759085309195,1.56975,4043.0,4042.8,0.4470984]
[1759085309403,0.7489,4042.9,4042.8,0.4470984]
[1759085309894,0.7489,4042.9,4042.8,0.0020384]
[1759085314401,0.7489,4042.9,4042.8,0.4471084]
[1759085315399,1.19395,4042.9,4042.8,0.7710084]
[1759085315702,1.19395,4042.9,4042.8,0.3259384]
[1759085315902,1.19395,4042.9,4042.8,0.4471084]
[1759085317905,1.19395,4042.9,4042.8,0.7710084]
[1759085318598,1.19395,4042.9,4042.8,0.9775084]
[1759085319904,4.40175,4042.9,4042.8,0.9775084]
[1759085320906,4.40175,4042.9,4042.8,0.5324384]
[1759085322101,4.40175,4042.9,4042.8,0.0020384]
[1759085329516,1.19405,4042.1,4042.0,3.7382]
[1759085329709,1.44205,4042.1,4042.0,3.7382]
[1759085330410,1.44205,4042.1,4042.0,0.5304]
[1759085330606,1.44205,4042.1,4042.0,0.53336324]
[1759085330806,1.93333932,4042.1,4042.0,0.00296324]
[1759085331108,1.93333932,4042.1,4042.0,0.32686324]
[1759085331613,1.93333932,4042.1,4042.0,0.53336324]
[1759085331804,1.93333932,4042.1,4042.0,0.32686324]
[1759085332005,3.27911706,4042.1,4042.0,0.00296324]
[1759085335616,3.80661061,4042.1,4042.0,0.00296324]
[1759085342608,0.44523,4041.4,4041.3,0.5265]
[1759085342919,0.7701,4041.2,4041.1,0.97175]
[1759085343120,1.95463932,4041.2,4041.1,0.97175]
[1759085343315,1.95463932,4041.2,4041.1,0.75755]
[1759085343520,1.95463932,4041.2,4041.1,1.17735]
[1759085343521,2.48213287,4041.2,4041.1,1.17735]
[1759085343819,2.48213287,4041.2,4041.1,1.1803902]
[1759085344816,2.03688287,4041.2,4041.1,1.1803902]
[1759085355620,2.04905747,4041.2,4041.1,1.1803902]
[1759085356629,2.06123207,4041.2,4041.1,1.1803902]
[1759085357029,2.07074551,4041.2,4041.1,1.1803902]
[1759085358921,2.51599551,4041.2,4041.1,0.4483002]
[1759085359527,2.51599551,4041.2,4041.1,0.0030402]
[1759085360326,2.51599551,4041.2,4041.1,0.4483002]
[1759085361231,0.7588,4040.6,4040.5,0.5488]
[1759085361430,2.57904133,4040.6,4040.5,0.5488]
[1759085361625,0.44534,4040.4,4040.0,3.5862]
[1759085361826,0.7588,4040.2,4040.1,0.5488]
[1759085362026,1.81144551,4040.2,4040.1,0.5488]
[1759085362228,1.81352715,4040.2,4040.1,0.55117219]
[1759085363228,1.81595146,4040.2,4040.1,0.55117219]
[1759085363733,1.81837577,4040.2,4040.1,0.55117219]
[1759085364130,1.82080008,4040.2,4040.1,0.55117219]
[1759085364634,2.07122439,4040.2,4040.1,0.00237219]
[1759085364934,2.07122439,4040.2,4040.1,0.31397219]
[1759085366834,2.0736487,4040.2,4040.1,0.31397219]
[1759085367530,2.07607301,4040.2,4040.1,0.31397219]
[1759085368329,2.07607301,4040.2,4040.1,0.52377219]
[1759085368732,1.50017096,4040.2,4040.1,0.52377219]
[1759085369033,2.08706488,4040.2,4040.1,0.52377219]
[1759085369828,2.09541939,4040.2,4040.1,0.52377219]
[1759085372336,2.54077939,4040.2,4040.1,0.52377219]
[1759085372542,2.54077939,4040.2,4040.1,0.00237219]
[1759085372731,2.54077939,4040.2,4040.1,0.96914219]
[1759085372931,2.09541939,4040.2,4040.1,1.18804219]
[1759085373334,2.54077939,4040.2,4040.1,1.18804219]
[1759085375540,2.54656378,4040.2,4040.1,1.18804219]
[1759085376443,2.55234817,4040.2,4040.1,1.18804219]
[1759085376641,1.32048817,4040.2,4040.1,1.18804219]
[1759085376939,1.56848817,4040.2,4040.1,1.18804219]
[1759085377335,1.88868817,4040.2,4040.1,1.18804219]
[1759085377535,2.11028817,4040.2,4040.1,1.18804219]
[1759085378643,2.11607256,4040.2,4040.1,1.18804219]
[1759085379547,2.12185695,4040.2,4040.1,1.18804219]
[1759085380446,2.12764134,4040.2,4040.1,1.18804219]
[1759085381442,2.13261163,4040.2,4040.1,1.18804219]
[1759085382534,1.34281163,4040.2,4040.1,1.18804219]
[1759085382936,1.66301163,4040.2,4040.1,1.18804219]
[1759085383544,1.88461163,4040.2,4040.1,1.18804219]
[1759085387445,1.25547096,4040.2,4040.1,1.18804219]
[1759085387642,1.892264,4040.2,4040.1,1.18804219]
[1759085388450,1.89991637,4040.2,4040.1,1.18804219]
[1759085389945,1.90757146,4040.2,4040.1,1.18804219]
[1759085390148,1.14547146,4040.2,4040.1,1.43604219]
[1759085390852,1.15312655,4040.2,4040.1,1.43604219]
[1759085391851,1.15640387,4040.2,4040.1,1.43604219]
[1759085393649,1.15640387,4040.2,4040.1,6.43604219]
[1759085397960,1.16406303,4040.2,4040.1,6.43604219]
[1759085398762,1.17172219,4040.2,4040.1,6.43604219]
[1759085399861,1.17938135,4040.2,4040.1,6.43604219]
[1759085400861,1.18704051,4040.2,4040.1,6.43604219]
[1759085401155,2.40590051,4040.2,4040.1,0.25037219]
[1759085401861,2.40915611,4040.2,4040.1,0.25037219]
[1759085402260,1.96379611,4040.2,4040.1,0.25037219]
[1759085402860,1.96379611,4040.2,4040.1,0.00237219]
[1759085406168,1.96379611,4040.2,4040.1,0.31267219]
[1759085407070,1.96379611,4040.2,4040.1,0.00237219]
[1759085411358,2.40915611,4040.2,4040.1,0.00237219]
[1759085412369,3.7570743,4040.2,4040.1,0.00237219]
[1759085423273,4.0050743,4040.2,4040.1,0.00237219]
[1759085430980,1.1135,4039.9,4039.0,3.6513]
[1759085431181,0.7643,4039.1,4039.0,3.8725]
[1759085431478,1.25558932,4039.1,4039.0,3.8725]
[1759085431875,1.95251447,4039.1,4039.0,3.8725]
[1759085432075,1.95251447,4039.1,4039.0,3.87481473]
[1759085432982,1.95251447,4039.1,4039.0,4.09501473]
[1759085433386,1.61451447,4039.1,4039.0,4.09501473]
[1759085434579,1.40341447,4039.1,4039.0,4.09501473]
[1759085434790,1.18821447,4039.1,4039.0,4.09501473]
[1759085436788,1.95251447,4039.1,4039.0,4.09501473]
[1759085439789,1.95251447,4039.1,4039.0,4.54050473]
[1759085440190,1.61451447,4039.1,4039.0,4.54050473]
[1759085440487,1.40341447,4039.1,4039.0,4.54050473]
[1759085440891,1.41108922,4039.1,4039.0,4.54050473]
[1759085441888,1.41876397,4039.1,4039.0,4.54050473]
[1759085442285,0.70648932,4039.1,4039.0,4.54050473]
[1759085442489,1.42643872,4039.1,4039.0,4.54050473]
[1759085442788,1.43411347,4039.1,4039.0,4.54050473]
[1759085443192,0.94282415,4039.1,4039.0,4.54050473]
[1759085443392,1.43881189,4039.1,4039.0,4.54050473]
[1759085444897,1.98791189,4039.1,4039.0,4.54050473]
[1759085445482,1.43881189,4039.1,4039.0,4.54050473]
[1759085445686,1.22361189,4039.1,4039.0,4.54050473]
[1759085454693,1.22361189,4039.1,4039.0,4.78850473]
[1759085463395,0.49598774,4039.1,4039.0,4.78850473]
[1759085463591,1.23130382,4039.1,4039.0,4.78850473]
[1759085464308,0.49598774,4039.1,4039.0,4.78850473]
[1759085464606,1.23899575,4039.1,4039.0,4.78850473]
[1759085465007,0.75069994,4039.1,4039.0,4.34301473]
[1759085465309,3.20988164,4040.2,4040.1,1.20407]
[1759085465507,3.42688164,4040.2,4040.1,1.20407]
[1759085465803,3.94818164,4040.2,4040.1,1.20407]
[1759085466003,3.95899809,4040.2,4040.1,1.20407]
[1759085469602,3.43769809,4040.2,4040.1,1.20407]
[1759085469908,3.74729809,4040.2,4040.1,1.20407]
[1759085470604,3.43769809,4040.2,4040.1,1.20407]
[1759085470809,0.01289809,4040.2,4040.1,1.20407]
[1759085471009,0.75119809,4040.2,4040.1,1.20407]
[1759085471209,0.75119809,4040.2,4040.1,0.44537]
[1759085471799,0.75888518,4040.2,4040.1,0.44537]
[1759085472297,0.43,4039.8,4039.7,0.248]
[1759085472501,0.748,4039.8,4039.7,0.7458]
[1759085472701,0.77419063,4039.8,4039.7,1.19121]
[1759085473203,0.78187772,4039.8,4039.7,1.19121]
[1759085473604,0.78956481,4039.8,4039.7,1.19121]
[1759085474207,0.79270869,4039.8,4039.7,1.19121]
[1759085477008,1.28832556,4039.8,4039.7,1.19121]
[1759085477705,0.97032556,4039.8,4039.7,1.19121]
[1759085478011,1.28832556,4039.8,4039.7,1.19121]
[1759085478513,0.97032556,4039.8,4039.7,1.19121]
[1759085479815,1.28832556,4039.8,4039.7,1.19121]
[1759085480117,0.77219176,4039.8,4039.7,1.19121]
[1759085483716,1.32309176,4039.8,4039.7,0.97351]
[1759085485222,1.32309176,4039.8,4039.7,1.19091]
[1759085491417,0.99159176,4039.8,4039.7,1.19091]
[1759085492023,0.77219176,4039.8,4039.7,2.27260679]
[1759085492219,0.54799176,4039.8,4039.7,2.27260679]
[1759085492418,0.54799176,4039.8,4039.7,2.52060679]
[1759085493623,0.75429176,4039.8,4039.7,2.52060679]
[1759085493825,0.25867489,4039.8,4039.7,1.43891]
[1759085494026,0.75463776,4039.8,4039.7,1.43891]
[1759085494327,1.08613776,4039.8,4039.7,1.43891]
[1759085494522,1.12003,4039.8,4039.7,1.43891]
[1759085500323,1.12485136,4039.8,4039.7,1.43891]
[1759085500830,1.12967272,4039.8,4039.7,1.43891]
[1759085501231,1.03376287,4039.8,4039.7,1.43891]
[1759085501423,1.13449408,4039.8,4039.7,1.43891]
[1759085502526,0.80299408,4039.8,4039.7,1.43891]
[1759085502730,0.59669408,4039.8,4039.7,2.52060679]
[1759085503225,0.60151544,4039.8,4039.7,2.52060679]
[1759085504136,0.6063368,4039.8,4039.7,2.52060679]
[1759085504722,0.61115816,4039.8,4039.7,2.52060679]
[1759085505130,0.61597952,4039.8,4039.7,2.52060679]
[1759085506432,0.82227952,4039.8,4039.7,1.43891]
[1759085506633,0.7572,4039.6,4039.5,4.19184]
[1759085506832,2.33485966,4039.6,4039.5,4.19184]
[1759085507722,2.45501903,4039.6,4039.5,4.19184]
[1759085511037,2.45501903,4039.6,4039.5,4.40924]
[1759085512238,2.46237534,4039.6,4039.5,4.40924]
[1759085513243,2.46237534,4039.6,4039.5,1.20144]
[1759085514243,2.46748228,4039.6,4039.5,1.20144]
[1759085515346,2.47258922,4039.6,4039.5,1.20144]
[1759085516339,2.47769616,4039.6,4039.5,1.20144]
[1759085516539,2.92311616,4039.6,4039.5,1.20144]
[1759085516747,2.47769616,4039.6,4039.5,1.20144]
[1759085517246,2.4701679,4039.6,4039.5,1.20144]
[1759085517946,2.47527484,4039.6,4039.5,1.20144]
[1759085518541,2.92069484,4039.6,4039.5,1.20144]
[1759085518944,2.92580178,4039.6,4039.5,1.20144]
[1759085520552,2.48038178,4039.6,4039.5,1.20144]
[1759085520946,2.48138301,4039.6,4039.5,1.20144]
[1759085521147,2.92680301,4039.6,4039.5,1.20144]
[1759085521752,2.48138301,4039.6,4039.5,1.20144]
[1759085524762,2.48138301,4039.6,4039.5,1.33424]
[1759085525563,2.48138301,4039.6,4039.5,1.20144]